Cogmind - Beta 14 @@@ ROGUE MODE // 2025.03.21 @ 21:17:09 Player: King Of Bel Result: Destroyed by S-27 Virus with Autogun Performance ------------- Evolutions (3) 1500 Regions Visited (9) 1800 Robots Destroyed (18) 90 Value Destroyed (497) 497 Prototype IDs (1) 20 Alien Tech Used (0) 0 Bonus (646) 646 TOTAL SCORE: 4553 Bonus ------- Follower Combat Kills 146 Entered Garrisons 200 Aligned with FarCom 300 Cogmind --------- Core Integrity 0/700 Matter 34/300 Energy 100/100 System Corruption 0% Temperature Cool (0) Movement Core (50) Location -7/Garrison Parts ------- > --- POWER (2) -------- (None) > --- PROPULSION (4) --- (None) > --- UTILITY (4) ------ 0b10 Alert Chip Improved Salvage Targeting Computer Targeting Computer Core Analyzer > --- WEAPON (3) ------- (None) > --- INVENTORY (5) ---- Xenon Bombardment Thruster Small Storage Unit Improved Light Armor Plating Assault Cannon Mining Laser Peak State ------------ > --- POWER ------------ Light Deuterium Engine Micro Nuclear Core > --- PROPULSION ------- Light Treads Armored Wheel > --- UTILITY ---------- 0b10 Alert Chip Improved Salvage Targeting Computer Targeting Computer Improved Medium Armor Plating > --- WEAPON ----------- Flak Gun Advanced Assault Cannon Gauss Cannon > --- INVENTORY -------- Xenon Bombardment Thruster Small Storage Unit Improved Light Armor Plating Assault Cannon Mining Laser [Rating: 38] Favorites ----------- Power Micro Nuclear Core Engine Light Ion Engine Power Core Micro Nuclear Core Propulsion Light Treads Treads Light Treads Leg Aluminum Leg Wheel Armored Wheel Flight Unit Flight Unit Utility Targeting Computer Storage Small Storage Unit Processor Targeting Computer Protection Improved Medium Armor Plating Weapon Light Assault Rifle Energy Gun Small Laser Ballistic Gun Light Assault Rifle Ballistic Cannon Gauss Cannon Build | -11 -10 -9 -9 -9 -8 -8 -7 -7 -7 ------- Run | Yrd Mat Mat Min Exi Min Mat Fac Sto Gar Slots Evolved 6 | . . 2 . . . 2 2 . . Power 1 | . . . . . . . 1 . . Propulsion 2 | . . 1 . . . 1 . . . Utility 2 | . . 1 . . . 1 . . . Weapon 1 | . . . . . . . 1 . . Parts Attached 36 | 7 4 6 . 1 . 3 15 . . Power 5 | 1 . 1 . . . 1 2 . . Engine 3 | 1 . 1 . . . 1 . . . Core 2 | . . . . . . . 2 . . Reactor . | . . . . . . . . . . Propulsion 12 | 2 2 2 . . . 2 4 . . Treads 4 | . . 1 . . . 1 2 . . Leg 1 | . . . . . . 1 . . . Wheel 5 | 2 . 1 . . . . 2 . . Hover . | . . . . . . . . . . Flight 2 | . 2 . . . . . . . . Utility 9 | 1 2 1 . 1 . . 4 . . Device . | . . . . . . . . . . Storage 1 | 1 . . . . . . . . . Processor 6 | . 2 1 . 1 . . 2 . . Hackware . | . . . . . . . . . . Protection 2 | . . . . . . . 2 . . Artifact . | . . . . . . . . . . Weapon 10 | 3 . 2 . . . . 5 . . Energy Gun 4 | 2 . 1 . . . . 1 . . Energy Cannon . | . . . . . . . . . . Ballistic Gun 3 | 1 . 1 . . . . 1 . . Ballistic Cannon 3 | . . . . . . . 3 . . Launcher . | . . . . . . . . . . Special Weapon . | . . . . . . . . . . Impact Weapon . | . . . . . . . . . . Slashing Weapon . | . . . . . . . . . . Piercing Weapon . | . . . . . . . . . . Special Melee Weapon . | . . . . . . . . . . Unidentified Prototypes 1 | . . . . 1 . . . . . Parts Lost 27 | . 1 7 . . . 7 9 . 3 Power 5 | . . 1 . . . 1 2 . 1 Propulsion 11 | . 1 3 . . . 3 2 . 2 Utility 3 | . . 1 . . . 1 1 . . Weapon 8 | . . 2 . . . 2 4 . . Highest Loss Streak 8 | . 1 7 . . . 4 8 . 3 To Critical Strikes . | . . . . . . . . . . Average Slot Usage (%) 64 | . 94 74 66 71 77 53 61 53 45 Engine 7 | . 14 9 11 11 11 5 5 . . Core 2 | . . . . . . . 5 7 5 Treads 5 | . . 1 11 11 11 10 1 7 4 Wheel 4 | . 23 6 . . . . 6 7 3 Processor 21 | . 16 25 22 27 33 22 17 30 30 Protection 3 | . . . . . . . 7 . . Energy Gun 6 | . 28 14 11 11 11 4 . . . Ballistic Gun 6 | . . 5 11 11 11 7 4 . . Ballistic Cannon 4 | . . . . . . . 9 . . Peak Build Rating 38 | 6 7 9 6 12 12 15 38 31 31 Average Rating 18 | 4 6 6 6 8 12 12 28 31 25 On Entrance 12 | . 6 7 6 6 12 12 10 31 31 Naked Turns . | . . . . . . . . . . Heaviest Build 38 | 14 14 9 5 5 5 5 38 6 6 Greatest Support 42 | 20 20 20 20 20 20 42 28 22 22 Greatest Overweight (x) 5 | . 2 1 . . . 1 5 . 1 Average Overweight (x) . | . . . . . . . 1 . . Largest Inventory Capacity 8 | 8 8 5 5 5 5 5 5 5 5 Average Capacity 5 | 6 6 5 5 5 5 5 5 5 5 Most Carried 5 | 1 4 3 2 2 2 2 5 5 5 Average Carried 2 | . 2 1 1 2 2 2 3 5 5 Final Capacity 8 | 8 5 5 5 5 5 5 5 5 5 Final Carried 5 | 1 4 1 2 2 2 2 5 5 5 Class Distribution -------------------- 73% | Mutant 14% | Skirmisher 12% | Tank Dominant Class ---------------- Mutant | -10/Materials Mutant | -9/Materials Mutant | -9/Mines Mutant | -9/Exiles Mutant | -8/Mines Mutant | -8/Materials Mutant | -7/Factory Mutant | -7/Storage Mutant | -7/Garrison Resources | -11 -10 -9 -9 -9 -8 -8 -7 -7 -7 ----------- Run | Yrd Mat Mat Min Exi Min Mat Fac Sto Gar Matter Collected 375 | 184 66 94 1 . . 7 23 . . Remotely . | . . . . . . . . . . Salvage Created 471 | . 133 225 . . . 43 70 . . Parts 41 | . 12 22 . . . 1 6 . . Haulers Intercepted . | . . . . . . . . . . Recyclers Shooed 1 | . . . . . . 1 . . . Parts Field Recycled . | . . . . . . . . . . Retrieved Matter . | . . . . . . . . . . Parts Self-Destructed . | . . . . . . . . . . Prevented . | . . . . . . . . . . Kills | -11 -10 -9 -9 -9 -8 -8 -7 -7 -7 ------- Run | Yrd Mat Mat Min Exi Min Mat Fac Sto Gar Combat Hostiles Destroyed 15 | . 5 6 . . . 1 3 . . Guns 10 | . 3 5 . . . 1 1 . . Cannons 2 | . . . . . . . 2 . . AOE 3 | . 2 1 . . . . . . . Classes Destroyed 4 | . 3 1 . . . . . . . Watcher 3 | . 1 2 . . . . . . . Swarmer 6 | . 3 3 . . . . . . . Grunt 7 | . 2 2 . . . 1 2 . . Sentry 2 | . . 1 . . . . 1 . . Best Kill Streak 5 | . 4 5 . . . 1 2 . . Combat Bots Only 4 | . 3 4 . . . 1 2 . . Max Kills in Single Turn 2 | . 2 1 . . . 1 1 . . Gunslinging . | . . . . . . . . . . Exploded 2 | . 2 1 . . . . . . . Melee . | . . . . . . . . . . Uniques/NPCs Destroyed . | . . . . . . . . . . Combat | -11 -10 -9 -9 -9 -8 -8 -7 -7 -7 -------- Run | Yrd Mat Mat Min Exi Min Mat Fac Sto Gar Hostile Shots Fired 489 | . 19 61 . . . 110 221 . 78 Missed 165 | . 4 20 . . . 32 79 . 30 Damage Taken 3547 | . 133 439 . . . 746 1490 . 739 Core 1082 | . 8 159 . . . 208 344 . 363 Absorbed by Shields . | . . . . . . . . . . Core Remaining (%) 79 | 100 96 . . . 60 62 . . . Volleys Fired 53 | . 9 21 1 . . 11 11 . . Largest 3 | . 2 2 2 . . 2 3 . . Hottest 124 | . 90 90 60 . . 60 124 . . Shots Fired 105 | . 18 36 2 . . 16 33 . . Gun 83 | . 18 36 2 . . 16 11 . . Cannon 22 | . . . . . . . 22 . . Launcher . | . . . . . . . . . . Special . | . . . . . . . . . . Kinetic 59 | . . 14 1 . . 11 33 . . Thermal 31 | . 9 16 1 . . 5 . . . Explosive . | . . . . . . . . . . Electromagnetic 15 | . 9 6 . . . . . . . Robot Hit Streak 11 | . 2 7 6 . . 11 9 . . Robot Miss Streak 5 | . 2 3 . . . 1 5 . . Penetration Max . | . . . . . . . . . . Secondary Targets 3 | . 2 1 . . . . . . . Max Gunslinging Chain 1 | . 1 1 . . . . . . . Shots Hit Robots 75 | . 9 25 2 . . 14 25 . . Core Hits 39 | . 6 13 1 . . 6 12 . 1 Critical Kills . | . . . . . . . . . . Critical Parts Destroyed . | . . . . . . . . . . Critical Strikes 4 | . . 1 . . . . 3 . . Burn 1 | . . 1 . . . . . . . Blast 3 | . . . . . . . 3 . . Melee Attacks . | . . . . . . . . . . Impact . | . . . . . . . . . . Slashing . | . . . . . . . . . . Piercing . | . . . . . . . . . . Sneak Attacks . | . . . . . . . . . . Combat Hostiles . | . . . . . . . . . . Follow-up Attacks . | . . . . . . . . . . Damage Inflicted 1252 | . 235 294 20 . . 132 559 6 6 Guns 691 | . 146 262 20 . . 119 144 . . Cannons 415 | . . . . . . . 415 . . Explosions 121 | . 89 32 . . . . . . . Melee . | . . . . . . . . . . Ramming 25 | . . . . . . 13 . 6 6 Kinetic 724 | . . 79 9 . . 77 559 . . Thermal 355 | . 152 150 11 . . 42 . . . Explosive . | . . . . . . . . . . Electromagnetic 148 | . 83 65 . . . . . . . Impact . | . . . . . . . . . . Slashing . | . . . . . . . . . . Piercing . | . . . . . . . . . . Highest Corruption . | . . . . . . . . . . Average Corruption . | . . . . . . . . . . Corruption Purged . | . . . . . . . . . . Corruption Blocked . | . . . . . . . . . . Overload Shots . | . . . . . . . . . . Overflow Damage 4 | . . . . . . . 4 . . Projectiles 4 | . . . . . . . 4 . . Explosions . | . . . . . . . . . . Melee . | . . . . . . . . . . Knockbacks 2 | . . . . . . . 2 . . Impact . | . . . . . . . . . . Kinetic 2 | . . . . . . . 2 . . Secondary . | . . . . . . . . . . Self-Inflicted Damage 3 | . . . . . . . . . 3 Shots . | . . . . . . . . . . Rammed 6 | . . . . . . 2 . 2 2 Targets Rammed 11 | . . . . . . 7 . 2 2 Kicked 5 | . . . . . . 5 . . . Crushed . | . . . . . . . . . . Highest Temperature 522 | . 180 115 14 . . 34 522 . . Average Temperature 112 | . 72 35 10 . . 15 189 . . Received Heat Transfer 828 | . 21 105 . . . 153 549 . . Effects 6 | . . . . . . . 6 . . Shutdowns 2 | . . . . . . . 2 . . Matter Decay 1 | . . . . . . . 1 . . Damage (major) 3 | . . . . . . . 3 . . Siege Activations . | . . . . . . . . . . Robots Corrupted . | . . . . . . . . . . Combat Hostiles . | . . . . . . . . . . Parts Fried 1 | . 1 . . . . . . . . Impact Corruptions . | . . . . . . . . . . Robots Melted . | . . . . . . . . . . Combat Hostiles . | . . . . . . . . . . Parts Melted 1 | . 1 . . . . . . . . Heat Transferred 818 | . 285 408 25 . . 100 . . . Parts Sabotaged . | . . . . . . . . . . Parts Stolen . | . . . . . . . . . . Parts Stripped . | . . . . . . . . . . Power Chain Reactions 2 | . 1 1 . . . . . . . Alert | -11 -10 -9 -9 -9 -8 -8 -7 -7 -7 ------- Run | Yrd Mat Mat Min Exi Min Mat Fac Sto Gar Peak Influence 207 | . 156 207 80 . . 100 198 43 45 Initial 80 | . . 65 80 . . . 40 31 27 Average 56 | . 78 138 80 . . 32 48 40 27 Maximum Alert Level 1 | . . 1 . . . . . . . Low Security (%) 97 | 100 100 71 100 . 100 100 100 100 100 Level 1 2 | . . 28 . . . . . . . Level 2 . | . . . . . . . . . . Level 3 . | . . . . . . . . . . Level 4 . | . . . . . . . . . . Level 5 . | . . . . . . . . . . High Security . | . . . . . . . . . . Max Security . | . . . . . . . . . . Squads Dispatched 8 | . 2 1 . . . 2 3 . . Investigation . | . . . . . . . . . . Extermination 1 | . . . . . . . 1 . . Reinforcement 7 | . 2 1 . . . 2 2 . . Assault . | . . . . . . . . . . Garrison . | . . . . . . . . . . Intercept . | . . . . . . . . . . Searches Triggered . | . . . . . . . . . . Construction Impeded 1 | . . . . . . . 1 . . Haulers Reinforced . | . . . . . . . . . . Active Scanning Responses . | . . . . . . . . . . Cargo Convoy Interrupts . | . . . . . . . . . . Stealth | -11 -10 -9 -9 -9 -8 -8 -7 -7 -7 --------- Run | Yrd Mat Mat Min Exi Min Mat Fac Sto Gar Distress Signals 6 | . 1 2 . . . 2 1 . . Communications Jammed . | . . . . . . . . . . Distress Signals . | . . . . . . . . . . Times Spotted 74 | . 8 10 . . . 22 23 2 9 Peak Tracking Total 13 | . 5 6 . . . 13 7 2 7 Tactical Retreats 9 | . . 1 . . . 3 3 . 2 Traps | -11 -10 -9 -9 -9 -8 -8 -7 -7 -7 ------- Run | Yrd Mat Mat Min Exi Min Mat Fac Sto Gar Traps Triggered 3 | . . . . . . . 3 . . Indirectly . | . . . . . . . . . . Trap Hack Attempts . | . . . . . . . . . . Triggered . | . . . . . . . . . . Disarmed . | . . . . . . . . . . Reprogrammed . | . . . . . . . . . . Reused . | . . . . . . . . . . Traps Extracted . | . . . . . . . . . . Installed . | . . . . . . . . . . Triggered . | . . . . . . . . . . Machines | -11 -10 -9 -9 -9 -8 -8 -7 -7 -7 ---------- Run | Yrd Mat Mat Min Exi Min Mat Fac Sto Gar Machines Disabled . | . . . . . . . . . . Max in Single Turn . | . . . . . . . . . . Machines Repaired . | . . . . . . . . . . Machines Dismantled . | . . . . . . . . . . Machines Sabotaged . | . . . . . . . . . . Overloaded Fab Kills . | . . . . . . . . . . Hacking | -11 -10 -9 -9 -9 -8 -8 -7 -7 -7 --------- Run | Yrd Mat Mat Min Exi Min Mat Fac Sto Gar Machines Accessed 1 | . . . . . . . . 1 . Terminals . | . . . . . . . . . . Fabricators . | . . . . . . . . . . Repair Stations . | . . . . . . . . . . Recycling Units . | . . . . . . . . . . Scanalyzers . | . . . . . . . . . . Garrison Access 1 | . . . . . . . . 1 . Total Hacks 2 | . . . . . . . . 2 . Successful 1 | . . . . . . . . 1 . Failed 1 | . . . . . . . . 1 . Catastrophic . | . . . . . . . . . . Database Lockouts . | . . . . . . . . . . Manual 1 | . . . . 1 . . . . . Terminals . | . . . . . . . . . . Fabricators . | . . . . . . . . . . Repair Stations . | . . . . . . . . . . Recycling Units . | . . . . . . . . . . Scanalyzers . | . . . . . . . . . . Garrison Access 2 | . . . . . . . . 2 . Terminal Hacks . | . . . . . . . . . . Fabricator Hacks . | . . . . . . . . . . Repair Station Hacks . | . . . . . . . . . . Recycling Unit Hacks . | . . . . . . . . . . Scanalyzer . | . . . . . . . . . . Garrison Access Hacks 1 | . . . . . . . . 1 . Unlock Access 1 | . . . . . . . . 1 . Unauthorized Hacks . | . . . . . . . . . . Terminals . | . . . . . . . . . . Fabricators . | . . . . . . . . . . Repair Stations . | . . . . . . . . . . Recycling Units . | . . . . . . . . . . Scanalyzers . | . . . . . . . . . . Garrison Access . | . . . . . . . . . . Data Cores Recovered . | . . . . . . . . . . Used . | . . . . . . . . . . Hacking Detections . | . . . . . . . . . . Full Trace Events . | . . . . . . . . . . Feedback Events . | . . . . . . . . . . Feedback Blocked . | . . . . . . . . . . Robot Schematics Acquired . | . . . . . . . . . . Robots Built . | . . . . . . . . . . Authchips . | . . . . . . . . . . Time . | . . . . . . . . . . Total Robot Build Rating . | . . . . . . . . . . Part Schematics Acquired . | . . . . . . . . . . Parts Built . | . . . . . . . . . . Authchips . | . . . . . . . . . . Time . | . . . . . . . . . . Total Part Build Rating . | . . . . . . . . . . Parts Repaired . | . . . . . . . . . . Time . | . . . . . . . . . . Parts Recycled . | . . . . . . . . . . Recycled Matter . | . . . . . . . . . . Retrieved Matter . | . . . . . . . . . . Retrieved Components . | . . . . . . . . . . Parts Scanalyzed . | . . . . . . . . . . Part Schematics Acquired . | . . . . . . . . . . Parts Damaged . | . . . . . . . . . . Bothacking | -11 -10 -9 -9 -9 -8 -8 -7 -7 -7 ------------ Run | Yrd Mat Mat Min Exi Min Mat Fac Sto Gar Used RIF Installer . | . . . . . . . . . . Robots Hacked . | . . . . . . . . . . Non-combat . | . . . . . . . . . . Combat . | . . . . . . . . . . Robot Hacks Applied . | . . . . . . . . . . Relay Couplers Released . | . . . . . . . . . . Fabnet Peak Effective % . | . . . . . . . . . . Robots Rewired . | . . . . . . . . . . Allies Hacked . | . . . . . . . . . . Hacks Repelled . | . . . . . . . . . . Allies | -11 -10 -9 -9 -9 -8 -8 -7 -7 -7 -------- Run | Yrd Mat Mat Min Exi Min Mat Fac Sto Gar Total Allies 6 | . . . 3 . . . 3 . . Largest Group 3 | . . . 3 3 . . 3 . . Highest-Rated Group 93 | . . . 71 71 . . 93 . . Highest-Rated Ally 31 | . . . 31 31 . . 31 . . Total Orders . | . . . . . . . . . . Ally Attacks 61 | . . . . . . . 61 . . Total Damage 934 | . . . . . . . 934 . . Kills 6 | . . . . . . . 6 . . Allies Corrupted . | . . . . . . . . . . Allies Melted 1 | . . . . . . . 1 . . Intel | -11 -10 -9 -9 -9 -8 -8 -7 -7 -7 ------- Run | Yrd Mat Mat Min Exi Min Mat Fac Sto Gar Robot Analysis Total . | . . . . . . . . . . Derelict Logs Recovered 1 | . . . 1 . . . . . . Drone Launches . | . . . . . . . . . . Drone Recoveries . | . . . . . . . . . . Exploration | -11 -10 -9 -9 -9 -8 -8 -7 -7 -7 ------------- Run | Yrd Mat Mat Min Exi Min Mat Fac Sto Gar Turns Passed 2074 | 40 101 147 193 356 20 194 874 61 88 Spaces Moved 1502 | 37 78 90 116 222 13 122 699 41 84 Core 250 | 1 . 14 . . . 28 164 . 43 Treads 584 | . . 17 116 222 13 56 78 41 41 Legs 38 | . . . . . . 38 . . . Wheels 621 | 36 69 59 . . . . 457 . . Hover . | . . . . . . . . . . Flight 9 | . 9 . . . . . . . . Fastest Speed 50 | 50 80 50 160 160 160 50 50 145 50 Average Speed 123 | 79 85 96 160 160 160 128 116 145 102 Slowest Speed 300 | 80 200 160 160 160 160 160 300 145 145 Overloaded Moves . | . . . . . . . . . . Propulsion Burnouts . | . . . . . . . . . . Robots Hopped . | . . . . . . . . . . Cave-ins Triggered . | . . . . . . . . . . Exploration Rate (%) 21 | 4 19 14 40 59 11 16 22 8 17 Regions Visited 9 Branch Regions 4 Pre-discovered Areas . | . . . . . . . . . . Known Exits Taken 1 | . . . . . . . . 1 . Unknown Exits Taken 8 | 1 1 1 1 1 1 1 1 . . Scrap Searched 1 | . . . 1 . . . . . . Spaces Dug . | . . . . . . . . . . Terrain Destroyed 17 | . 8 2 . . . . 7 . . Melee . | . . . . . . . . . . Projectile 7 | . . . . . . . 7 . . AOE 10 | . 8 2 . . . . . . . Terrain Rammed . | . . . . . . . . . . Walls Destroyed . | . . . . . . . . . . Machines Disabled . | . . . . . . . . . . Actions | -11 -10 -9 -9 -9 -8 -8 -7 -7 -7 --------- Run | Yrd Mat Mat Min Exi Min Mat Fac Sto Gar Total 1607 | 44 93 116 122 222 12 142 728 42 86 Wait 7 | . . . 5 . . . 2 . . Move 1493 | 36 77 89 115 221 12 121 698 40 84 Hop . | . . . . . . . . . . Pick Up 5 | 1 2 . 1 . . . 1 . . Fast Attach 30 | 6 3 3 . 1 . 3 14 . . Attach 3 | . . 3 . . . . . . . Detach 2 | . 1 . . . . . 1 . . Swap 3 | 1 1 . . . . . 1 . . Drop . | . . . . . . . . . . Fire 53 | . 9 21 1 . . 11 11 . . Melee . | . . . . . . . . . . Ram 3 | . . . . . . 1 . . 2 Kick 5 | . . . . . . 5 . . . Crush 3 | . . . . . . 1 . 2 . Escape Stasis . | . . . . . . . . . . Rewire . | . . . . . . . . . . Trap . | . . . . . . . . . . Miscellaneous . | . . . . . . . . . . Route ------- -11/Scrapyard -10/Materials -9/Materials -9/Mines -9/Exiles -8/Mines -8/Materials -7/Factory -7/Storage -7/Garrison History --------- Turn | Location | Event 25 | -11/Scrapyard | Discovered new exit (range 15) 41 | -11/Scrapyard | Entered Materials 106 | -10/Materials | Discovered new exit (range 14) 142 | -10/Materials | Entered another Materials area 142 | -9/Materials | Evolved 2 slots: Propulsion x1, Utility x1 191 | -9/Materials | Discovered new exit (range 16) 263 | -9/Materials | Lost 7 parts (1p3n1u2w) 289 | -9/Materials | Entered Mines 302 | -9/Mines | Build established: Mutant 358 | -9/Mines | Learned Materials terminal intel 417 | -9/Mines | Received a Mining Laser from a helpful Derelict 474 | -9/Mines | Deemed a non-threat by the Exiles lab entrance 476 | -9/Mines | Discovered new exit (range 5) 482 | -9/Mines | Entered Exiles 482 | -9/Exiles | Accompanied by 3 allies 512 | -9/Exiles | Led the pair of lost Derelicts to a safe place 524 | -9/Exiles | Met 8R-AWN 550 | -9/Exiles | Met EX-HEX 596 | -9/Exiles | Met EX-BIN 622 | -9/Exiles | Aligned with FarCom system 623 | -9/Exiles | Given EX-Vault access code 663 | -9/Exiles | Opened EX-Vault 671 | -9/Exiles | Found Prototype Processor 671 | -9/Exiles | Identified 0b10 Alert Chip 714 | -9/Exiles | Warned to stay clear of 0b10 Research branches 767 | -9/Exiles | Met EX-DEC 820 | -9/Exiles | Discovered new exit (range 14) 838 | -9/Exiles | Left Exiles lab with 0b10 Alert Chip 838 | -9/Exiles | Entered Mines 838 | -8/Mines | Discovered new exit (range 13) 858 | -8/Mines | Entered Materials 858 | -8/Materials | Evolved 2 slots: Propulsion x1, Utility x1 859 | -8/Materials | Loaded intel: 12 terminal locations 991 | -8/Materials | Lost 4 parts (1p1n1u1w) 1037 | -8/Materials | Discovered new exit (range 16) 1052 | -8/Materials | Entered Factory 1052 | -7/Factory | Evolved 2 slots: Power x1, Weapon x1 1080 | -7/Factory | Lost 3 parts (2n1w) 1755 | -7/Factory | Allied Derelicts emerged from ambush trap array 1798 | -7/Factory | Lost 8 parts (2p2n1u3w) 1914 | -7/Factory | Discovered new exit (range 10) 1926 | -7/Factory | Entered Storage 1980 | -7/Storage | Identified exit to Garrison 1987 | -7/Storage | Entered Garrison 2011 | -7/Garrison | Core integrity fell below 50% 2019 | -7/Garrison | Triggered checkpoint 2055 | -7/Garrison | Triggered checkpoint 2056 | -7/Garrison | Core integrity fell below 20% 2073 | -7/Garrison | Triggered checkpoint 2075 | -7/Garrison | Destroyed by S-27 Virus with Autogun Last Messages --------------- 01953_ K-01 Serf collects debris. 01954_ Slammed into K-01 Serf. 01958_ K-01 Serf collects debris. 01961_ K-01 Serf cleans the Transfer Shaft. 01969_ K-01 Serf collects debris. 01979_ Slammed into W-25 Informer. 01980_ Connecting with Garrison Access... 01980_ Current location identified: Storage >>Unlock Access door unlocked. 01980_ EXIT=UNLOCKED: GARRISON LOCATION=GARRISON GOAL=ESCAPE 01987_ Receiving FarCom transmissions... 02019_ Beams of light sweep through the air. An alarm sounds. 02030_ Arm. Huge Wheel destroyed. 02046_ Adv. Treads destroyed. 02055_ Beams of light sweep through the air. An alarm sounds. 02058_ Mic. Nuclear Core destroyed. 02074_ Slammed into S-27 Virus. Map ----- +----------------------------------------------------+ | ???????????????????????????????????# #?????????? | | ???????????????????????????????????# #?????????? | | ???????????????????????????????????# #?????????# | | ???????????????????????????????????# #?????????# | | ???????????????????????????????????# #?????????# | | ???????????????????????????????????# #?????????? | | ???????????????????????????????????# #?????????? | | ???????????????????????????????????# #??######?? | | ?????????????????################### #??# #?? | | ???????????????? #### ### | | ???????????????? | | ???????????????? ^^ | | ???????????????????????#########+################# | | ????????????????????????# #???# #???????????????? | | ????????????????????????# #???# #???????????????? | | ????????????????????????# ##### ####????????????? | | ????????????????????????# ## #????????????? | | ????????????????????????# ## #????????????? | | ?????????ssss?????####### ## " #????????????? | | ??????????????????# s """ """"??????????? | | ??????????????????####### ##s " "##??????????? | | ????????????????????????# ## "#???????????? | | ????????????????????????# s## " "#???????????? | | ????????????????????????#ss#####"""""#???????????? | | ????????????????????#####s #????######???????????? | | ?????????????????g??# @s#?????????????????????? | | ????????????????????########?????????????????????? | | ??????????????????g??????????????????????????????? | | ?????????????????????????????????????????????????? | | ?????????????????????????????????????????????????? | | ?????????????????????????????????????????????????? | | ?????????????????????????????????????????????????? | | ?????????????????????????????????????????????????? | | ?????????????????????????????????????????????????? | | ?????????????????????????????????????????????????? | | ???????????gg????????????????????????????????????? | | ?????????????????????????????????????????????????? | | ???????????????h?????????????????????????????????? | | ?????????????????????????????????????????????????? | | ?????????????????????????????????????????????????? | | ?????????????????????????????????????????????????? | | ?????????????????????????????????????????????????? | | ?????????????????????????????????????????????????? | | ?????????????????????????????????????????????????? | | ?????????????????????????????????????????????????? | | ?????????????????????????????????????????????????? | | ?????????????????????????????????????????????????? | | ?????????????????????????????????????????????????? | | ?????????????????????????????????????????????????? | | ?????????????????????????????????????????????????? | +----------------------------------------------------+ Best States ------------- Heat Dissipation 34 Energy Generation 24 Energy Capacity 250 Matter Stores 300 Matter Capacity 300 Sight Range 16 Terrain Scan Density 10 Armor Coverage 375 Evasion (%) 55 Targeting Accuracy 15 Core Analysis 6 Recoil Reduction 2 Salvage Targeting 2 Item Schematics ----------------- None Robot Schematics ------------------ None Fabricated ------------ Nothing Alien Tech Used ----------------- None Achievements -------------- None Challenges ------------ None Game ------ Seed ExplosiveGaussGravjet Manual? 0 Play Time 00:23:06 Cumulative 5.3 hours Start 2025.03.21 @ 20:54:34 End 2025.03.21 @ 21:17:09 Sessions 1 Manual Loads 0 Difficulty Rogue Special Mode None Game No. 15 Rogue 11 Adventurer 4 Explorer 0 Win Type - Total 0 Types 0/0/0/0/0/0/0/0/0 Lore% 9 Gallery% 12 Achievement% 12 Wizard Run 0 Options --------- Layout 0 ASCII 0 Keyboard 0 Movement Numpad Keybinds 0 Fullscreen 2 Font 36/Smallcaps Map View 38x25 Zoom Use 100% Tactical HUD 1 Map Filters NONE Filters NONE Steam 1 RUN: acc90b0a-7d29-4992-b31d-a834b44a6474